fUSD/lending_fUSD_20250530
["ID","MTS","AMOUNT","RATE_DAILY","PERIOD"]
[363216734,1748625072511,-420.0,0.00022465,2]
[363216735,1748625072521,-962.06,0.00022465,2]
[363216736,1748625072530,-420.0,0.00022465,2]
[363216737,1748625072540,-381.86,0.00022465,2]
[363216738,1748625072549,-420.0,0.00022465,2]
[363216739,1748625072558,-457.42,0.00022465,2]
[363216740,1748625072567,-420.0,0.00022465,2]
[363216741,1748625072576,-420.0,0.00022465,2]
[363216742,1748625072586,-1143.15,0.00022465,2]
[363216743,1748625072596,-1669.42,0.00022465,2]
[363216744,1748625072606,-420.0,0.00022465,2]
[363216745,1748625072615,-721.72,0.00022465,2]
[363216746,1748625072625,-420.0,0.00022465,2]
[363216747,1748625072634,-420.0,0.00022465,2]
[363216748,1748625072643,-781.5,0.00022465,2]
[363216749,1748625072654,-762.38,0.00022465,2]
[363216750,1748625072664,-620.93,0.00022465,2]
[363216751,1748625072674,-420.0,0.00022465,2]
[363216752,1748625072684,-420.0,0.00022465,2]
[363216753,1748625072693,-420.0,0.00022465,2]
[363216754,1748625072702,-420.0,0.00022465,2]
[363216755,1748625072711,-291.14,0.00022465,2]
[363216756,1748625072721,-420.0,0.00022465,2]
[363216757,1748625072730,-1054.56,0.00022465,2]
[363216758,1748625072739,-423.58,0.00022465,2]
[363216759,1748625072748,-1226.73,0.00022465,2]
[363216760,1748625072758,-1260.66,0.00022465,2]
[363216761,1748625072767,-420.0,0.00022465,2]
[363216762,1748625072776,-472.5,0.00022465,2]
[363216763,1748625072785,-541.62,0.00022465,2]
[363216764,1748625072794,-420.0,0.00022465,2]
[363216765,1748625072804,-460.1,0.00022465,2]
[363216766,1748625072813,-470.05,0.00022465,2]
[363216767,1748625072822,-420.0,0.00022465,2]
[363216768,1748625072832,-420.0,0.00022465,2]
[363216769,1748625072841,-886.1,0.00022465,2]
[363216770,1748625072851,-420.0,0.00022465,2]
[363216771,1748625072860,-420.0,0.00022465,2]
[363216772,1748625072869,-420.0,0.00022465,2]
[363216773,1748625072879,-420.0,0.00022465,2]
[363216774,1748625072888,-425.80312469,0.00022465,2]
[363216775,1748625072897,-420.0,0.00022465,2]
[363216776,1748625072907,-420.0,0.00022465,2]
[363216777,1748625072916,-420.0,0.00022465,2]
[363216778,1748625072925,-420.0,0.00022465,2]
[363216779,1748625072937,-420.0,0.00022465,2]
[363216780,1748625072947,-420.0,0.00022465,2]
[363216781,1748625072956,-420.0,0.00022465,2]
[363216782,1748625072966,-472.5,0.00022465,2]
[363216783,1748625072975,-420.0,0.00022465,2]
[363216784,1748625072986,-1360.65,0.00022465,2]
[363216785,1748625072996,-462.0,0.00022465,2]
[363216786,1748625073006,-420.0,0.00022465,2]
[363216787,1748625073015,-420.0,0.00022465,2]
[363216788,1748625073024,-557.63,0.00022465,2]
[363216789,1748625073035,-436.7,0.00022465,2]
[363216790,1748625073044,-692.11,0.00022465,2]
[363216791,1748625073054,-420.0,0.00022465,2]
[363216792,1748625073065,-173.66123248,0.00022465,2]
[363216793,1748625073075,-425.51951914,0.00022465,2]
[363216794,1748625073084,-369.02,0.00022465,2]
[363216795,1748625073095,-420.0,0.00022465,2]
[363216796,1748625073105,-420.0,0.00022465,2]
[363216797,1748625073114,-640.54,0.00022465,2]
[363216798,1748625073123,-477.7,0.00022465,2]
[363216799,1748625073132,-420.0,0.00022465,2]
[363216800,1748625073142,-420.0,0.00022465,2]
[363216801,1748625073151,-420.0,0.00022465,2]
[363216802,1748625073161,-420.0,0.00022465,2]
[363216803,1748625073170,-420.0,0.00022465,2]
[363216804,1748625073180,-856.5,0.00022465,2]
[363216805,1748625073195,-614.77,0.00022465,2]
[363216806,1748625073204,-927.02,0.00022465,2]
[363216807,1748625073214,-1872.63,0.00022465,2]
[363216808,1748625073224,-420.0,0.00022465,2]
[363216809,1748625073233,-420.0,0.00022465,2]
[363216810,1748625073243,-420.0,0.00022465,2]
[363216811,1748625073252,-420.0,0.00022465,2]
[363216812,1748625073261,-420.0,0.00022465,2]
[363216813,1748625073271,-423.46826511,0.00022465,2]
[363216814,1748625073280,-875.19,0.00022465,2]
[363216815,1748625073289,-541.93,0.00022465,2]
[363216816,1748625073299,-420.0,0.00022465,2]
[363216817,1748625073309,-1214.08,0.00022465,2]
[363216818,1748625073318,-445.06,0.00022465,2]
[363216819,1748625073327,-420.0,0.00022465,2]
[363216820,1748625073337,-571.32,0.00022465,2]
[363216821,1748625073346,-1013.99,0.00022465,2]
[363216822,1748625073355,-420.0,0.00022465,2]
[363216823,1748625073365,-420.0,0.00022465,2]
[363216824,1748625073374,-420.0,0.00022465,2]
[363216825,1748625073383,-457.41666003,0.00022465,2]
[363216826,1748625073393,-420.0,0.00022465,2]
[363216827,1748625073402,-497.23,0.00022465,2]
[363216828,1748625073412,-494.69,0.00022465,2]
[363216829,1748625073421,-467.96,0.00022465,2]
[363216830,1748625073431,-795.33,0.00022465,2]
[363216831,1748625073441,-420.0,0.00022465,2]
[363216832,1748625073451,-420.0,0.00022465,2]
[363216833,1748625073460,-420.0,0.00022465,2]
[363216834,1748625073469,-324.46179133,0.00022465,2]
[363216835,1748625073479,-420.0,0.00022465,2]
[363216836,1748625073488,-420.0,0.00022465,2]
[363216837,1748625073498,-420.0,0.00022465,2]
[363216838,1748625073507,-420.0,0.00022465,2]
[363216839,1748625073517,-599.97,0.00022465,2]
[363216840,1748625073527,-420.0,0.00022465,2]
[363216841,1748625073536,-420.0,0.00022465,2]
[363216842,1748625073546,-420.0,0.00022465,2]
[363216843,1748625073556,-420.0,0.00022465,2]
[363216844,1748625073565,-1288.47,0.00022465,2]
[363216845,1748625073574,-498.93,0.00022465,2]
[363216846,1748625073584,-1164.4,0.00022465,2]
[363216847,1748625073593,-799.77,0.00022465,2]
[363216848,1748625073602,-420.0,0.00022465,2]
[363216849,1748625073612,-435.18,0.00022465,2]
[363216850,1748625073621,-420.0,0.00022465,2]
[363216851,1748625073630,-430.39,0.00022465,2]
[363216852,1748625073639,-548.38,0.00022465,2]
[363216853,1748625073649,-534.84297259,0.00022465,2]
[363216854,1748625073658,-420.0,0.00022465,2]
[363216855,1748625073666,-316.36231184,0.00022465,2]
[363216856,1748625073675,-94679.42350814,0.00022465,2]
[363216857,1748625074250,-254.42,0.00022465,2]
[363216858,1748625074271,-420.0,0.00021917,2]
[363216859,1748625074281,-370.10527809,0.00022191,2]
[363216860,1748625074291,-9544.46649186,0.00022465,2]
[363216861,1748625074300,-753.25,0.00022465,2]
[363216862,1748625074310,-420.0,0.00022465,2]
[363216863,1748625074320,-1398.85,0.00022465,2]
[363216864,1748625074329,-420.0,0.00022465,2]
[363216865,1748625074339,-420.0,0.00022465,2]
[363216866,1748625074349,-3191.18,0.00022465,2]
[363216867,1748625074358,-420.0,0.00022465,2]
[363216868,1748625074368,-768.86,0.00022465,2]
[363216869,1748625074379,-420.0,0.00022465,2]
[363216870,1748625074390,-794.21,0.00022465,2]
[363216871,1748625074400,-420.0,0.00022465,2]
[363216872,1748625074410,-660.85,0.00022465,2]
[363216873,1748625074420,-549.9,0.00022465,2]
[363216874,1748625074430,-871.1,0.00022465,2]
[363216875,1748625074442,-690.16,0.00022465,2]
[363216876,1748625074452,-901.34,0.00022465,2]
[363216877,1748625074462,-818.94,0.00022465,2]
[363216878,1748625074471,-377.83283176,0.00022465,2]
[363216879,1748625074481,-420.0,0.00022465,2]
[363216880,1748625074491,-473.7899379,0.00022465,2]
[363216881,1748625074501,-420.0,0.00022465,2]
[363216882,1748625074511,-1414.87,0.00022465,2]
[363216883,1748625074521,-420.0,0.00022465,2]
[363216884,1748625074531,-1095.22,0.00022465,2]
[363216885,1748625074541,-420.0,0.00022465,2]
[363216886,1748625074551,-1389.99,0.00022465,2]
[363216887,1748625074561,-590.38,0.00022465,2]
[363216888,1748625074571,-1126.03,0.00022465,2]
[363216889,1748625074581,-775.7,0.00022465,2]
[363216890,1748625074592,-776.47,0.00022465,2]
[363216891,1748625074601,-420.0,0.00022465,2]
[363216892,1748625074612,-420.0,0.00022465,2]
[363216893,1748625074622,-420.0,0.00022465,2]
[363216894,1748625074632,-963.24,0.00022465,2]
[363216895,1748625074642,-420.0,0.00022465,2]
[363216896,1748625074652,-1147.01,0.00022465,2]
[363216897,1748625074662,-476.26,0.00022465,2]
[363216898,1748625074673,-1797.5,0.00022465,2]
[363216899,1748625074682,-817.49,0.00022465,2]
[363216900,1748625074693,-1010.25,0.00022465,2]
[363216901,1748625074704,-420.0,0.00022465,2]
[363216902,1748625074715,-2733.08,0.00022465,2]
[363216903,1748625074725,-3359.6956789,0.00022465,2]
[363216904,1748625074735,-597.62,0.00022465,2]
[363216905,1748625074746,-420.0,0.00022465,2]
[363216906,1748625074756,-2467.06153137,0.00022465,2]
[363216907,1748625074811,-501.89846863,0.00022465,2]
[363216908,1748625074821,-420.0,0.00022465,2]
[363216909,1748625074831,-420.0,0.00022465,2]
[363216910,1748625074841,-1730.68,0.00022465,2]
[363216911,1748625074851,-1262.48,0.00022465,2]
[363216912,1748625074861,-956.8,0.00022465,2]
[363216913,1748625074871,-420.0,0.00022465,2]
[363216914,1748625074881,-581.65,0.00022465,2]
[363216915,1748625074891,-4101.08402202,0.00022465,2]
[363216916,1748625074904,-5285.05597798,0.00022465,2]
[363216917,1748625074915,-420.0,0.00022465,2]
[363216918,1748625074925,-412.51805773,0.00022465,2]
[363216919,1748625074935,-420.0,0.00022465,2]
[363216920,1748625074946,-477.2,0.00022465,2]
[363216921,1748625074957,-33963.91,0.00022465,2]
[363216922,1748625074967,-1558.08,0.00022465,2]
[363216923,1748625074976,-432.28,0.00022465,2]
[363216924,1748625074988,-881.65,0.00022465,2]
[363216925,1748625074998,-420.0,0.00022465,2]
[363216926,1748625075008,-1583.45,0.00022465,2]
[363216927,1748625075018,-483.8,0.00022465,2]
[363216928,1748625075030,-502.31721287,0.00022465,2]
[363216929,1748625075040,-1568.81,0.00022465,2]
[363216930,1748625075049,-9613.34,0.00022465,2]
[363216931,1748625075060,-420.0,0.00022465,2]
[363216932,1748625075071,-420.0,0.00022465,2]
[363216933,1748625075081,-3181.46,0.00022465,2]
[363216934,1748625075091,-630.99,0.00022465,2]
[363216935,1748625075102,-717.99,0.00022465,2]
[363216936,1748625075111,-420.0,0.00022465,2]
[363216937,1748625075122,-730.53,0.00022465,2]
[363216938,1748625075132,-420.0,0.00022465,2]
[363216939,1748625075143,-659.62,0.00022465,2]
[363216940,1748625075153,-1054.14,0.00022465,2]
[363216941,1748625075164,-420.0,0.00022465,2]
[363216942,1748625075177,-1814.5,0.00022465,2]
[363216943,1748625075187,-3662.03,0.00022465,2]
[363216944,1748625075196,-530.94,0.00022465,2]
[363216945,1748625075206,-4593.81,0.00022465,2]
[363216946,1748625075216,-1229.35,0.00022465,2]
[363216947,1748625075226,-2333.71,0.00022465,2]
[363216948,1748625075236,-420.0,0.00022465,2]
[363216949,1748625075246,-1191.89,0.00022465,2]
[363216950,1748625075256,-739.79,0.00022465,2]
[363216951,1748625075266,-420.0,0.00022465,2]
[363216952,1748625075276,-420.0,0.00022465,2]
[363216953,1748625075286,-1346.03,0.00022465,2]
[363216954,1748625075296,-420.0,0.00022465,2]
[363216955,1748625075306,-742.32,0.00022465,2]
[363216956,1748625075317,-1349.82,0.00022465,2]
[363216957,1748625075327,-484.2,0.00022465,2]
[363216958,1748625075550,-519.85491057,0.00022465,2]
[363216959,1748625075566,-721.76,0.00022465,2]
[363216960,1748625075581,-808.4,0.00022465,2]
[363216961,1748625075591,-547.39,0.00022465,2]
[363216962,1748625075602,-3643.3,0.00022465,2]
[363216963,1748625075611,-435.99,0.00022465,2]
[363216964,1748625075621,-420.0,0.00022465,2]
[363216965,1748625075631,-3224.59,0.00022465,2]
[363216966,1748625075639,-717.83,0.00022465,2]
[363216967,1748625075649,-1989.94,0.00022465,2]
[363216968,1748625075659,-433.84,0.00022465,2]
[363216969,1748625075669,-420.0,0.00022465,2]
[363216970,1748625075678,-420.0,0.00022465,2]
[363216971,1748625075688,-575.57384084,0.00022465,2]
[363216972,1748625075701,-223.36615916,0.00022465,2]
[363216973,1748625075711,-420.0,0.00022465,2]
[363216974,1748625075721,-484.4,0.00022465,2]
[363216975,1748625075731,-508.77,0.00022465,2]
[363216976,1748625075741,-442.54084084,0.00022465,2]
[363216977,1748625075770,-283.55207816,0.00021917,2]
[363216978,1748625075789,-136.44792184,0.00021917,2]
[363216979,1748625075799,-115.938482,0.00021917,2]
[363216980,1748625075810,-304.061518,0.00021917,2]
[363216981,1748625075820,-6.438482,0.00022191,2]
[363216982,1748625075840,-888.631518,0.00022191,2]
[363216983,1748625075849,-118.69915916,0.00022465,2]
[363216984,1748625075858,-50.79650749,0.00022465,2]
[363216985,1748625075869,-981.95349251,0.00022465,2]
[363216986,1748625075879,-420.0,0.00022465,2]
[363216987,1748625075887,-1425.59,0.00022465,2]
[363216988,1748625075896,-1428.96,0.00022465,2]
[363216989,1748625075905,-2060.88,0.00022465,2]
[363216990,1748625075912,-480.78,0.00022465,2]
[363216991,1748625075921,-532.18,0.00022465,2]
[363216992,1748625075928,-425.3679515,0.00022465,2]
[363216993,1748625075936,-11760.79,0.00022465,2]
[363216994,1748625075944,-1234.14,0.00022465,2]
[363216995,1748625075952,-6655.62,0.00022465,2]
[363216996,1748625075959,-420.0,0.00022465,2]
[363216997,1748625075966,-6718.87,0.00022465,2]
[363216998,1748625075974,-420.0,0.00022465,2]
[363216999,1748625075983,-420.0,0.00022465,2]
[363217000,1748625075996,-420.0,0.00022465,2]
[363217001,1748625076006,-1302.98,0.00022465,2]
[363217002,1748625076015,-420.0,0.00022465,2]
[363217003,1748625076026,-5897.25,0.00022465,2]
[363217004,1748625076036,-702.84,0.00022465,2]
[363217005,1748625076047,-748.73,0.00022465,2]
[363217006,1748625076057,-525.75,0.00022465,2]
[363217007,1748625076067,-420.0,0.00022465,2]
[363217008,1748625076077,-834.52,0.00022465,2]
[363217009,1748625076087,-1451.73,0.00022465,2]
[363217010,1748625076096,-2081.1,0.00022465,2]
[363217011,1748625076106,-420.0,0.00022465,2]
[363217012,1748625076116,-975.32,0.00022465,2]
[363217013,1748625076125,-336.8506503,0.00022465,2]
[363217014,1748625076135,-420.0,0.00022465,2]
[363217015,1748625076145,-1014.54,0.00022465,2]
[363217016,1748625076154,-339.72994529,0.00022465,2]
[363217017,1748625076163,-420.0,0.00022465,2]
[363217018,1748625076173,-2507.34,0.00022465,2]
[363217019,1748625076183,-2482.04,0.00022465,2]
[363217020,1748625076195,-420.0,0.00022465,2]
[363217021,1748625076204,-1555.8,0.00022465,2]
[363217022,1748625076214,-536.15,0.00022465,2]
[363217023,1748625076223,-478.64031661,0.00022465,2]
[363217024,1748625076233,-1117.07,0.00022465,2]
[363217025,1748625076243,-1497.32,0.00022465,2]
[363217026,1748625076252,-1690.12,0.00022465,2]
[363217027,1748625076261,-607.4,0.00022465,2]
[363217028,1748625076271,-1107.9,0.00022465,2]
[363217029,1748625076281,-891.1,0.00022465,2]
[363217030,1748625076290,-779.44,0.00022465,2]
[363217031,1748625076299,-868.62,0.00022465,2]
[363217032,1748625076309,-1146.68423215,0.00022465,2]
[363217033,1748625076321,-108.31576785,0.00022465,2]
[363217034,1748625076331,-1048.64,0.00022465,2]
[363217035,1748625076341,-1227.38,0.00022465,2]
[363217036,1748625076350,-485.12,0.00022465,2]
[363217037,1748625076359,-609.79,0.00022465,2]
[363217038,1748625076368,-3760.55,0.00022465,2]
[363217039,1748625076378,-534.51,0.00022465,2]
[363217040,1748625076388,-420.0,0.00022465,2]
[363217041,1748625076398,-572.34,0.00022465,2]
[363217042,1748625076407,-579.66,0.00022465,2]
[363217043,1748625076417,-420.0,0.00022465,2]
[363217044,1748625076426,-1297.24,0.00022465,2]
[363217045,1748625076436,-947.19,0.00022465,2]
[363217046,1748625076447,-830.24,0.00022465,2]
[363217047,1748625076455,-420.0,0.00022465,2]
[363217048,1748625076464,-420.75528881,0.00022465,2]
[363217049,1748625076479,-420.0,0.00022191,2]
[363217050,1748625076489,-3061.06471119,0.00022465,2]
[363217051,1748625076498,-420.0,0.00022465,2]
[363217052,1748625076507,-461.82166373,0.00022465,2]
[363217053,1748625076519,-686.26833627,0.00022465,2]
[363217054,1748625076528,-748.81665555,0.00022465,2]
[363217055,1748625077070,-520.89,0.00021917,2]
[363217056,1748625077081,-458.9,0.00021917,2]
[363217057,1748625077090,-632.42427601,0.00021917,2]
[363217058,1748625077100,-420.0,0.00022191,2]
[363217059,1748625077110,-520.89,0.00022191,2]
[363217060,1748625077119,-1783.60334445,0.00022465,2]
[363217061,1748625077129,-282.17013423,0.00022465,2]
[363217062,1748625080885,-868.06459173,0.00022465,2]
[363217063,1748625080896,-867.68527404,0.00022465,2]
[363217064,1748625080905,-420.0,0.00022465,2]
[363217065,1748625080915,-532.61,0.00022465,2]
[363217066,1748625080927,-486.99,0.00022465,2]
[363217067,1748625080939,-695.74,0.00022465,2]
[363217068,1748625080950,-4390.11,0.00022465,2]
[363217069,1748625080960,-1109.71,0.00022465,2]
[363217070,1748625080969,-420.0,0.00022465,2]
[363217071,1748625080979,-420.0,0.00022465,2]
[363217072,1748625080989,-420.0,0.00022465,2]
[363217073,1748625080999,-420.0,0.00022465,2]
[363217074,1748625081008,-825.98,0.00022465,2]
[363217075,1748625081017,-3251.12,0.00022465,2]
[363217076,1748625081027,-420.0,0.00022465,2]
[363217077,1748625081038,-595.62,0.00022465,2]
[363217078,1748625081048,-1231.67,0.00022465,2]
[363217079,1748625081058,-3413.16,0.00022465,2]
[363217080,1748625081067,-590.82,0.00022465,2]
[363217081,1748625081078,-1617.52,0.00022465,2]
[363217082,1748625081087,-1701.89,0.00022465,2]
[363217083,1748625081097,-1388.92,0.00022465,2]
[363217084,1748625081107,-420.0,0.00022465,2]
[363217085,1748625081117,-420.0,0.00022465,2]
[363217086,1748625081127,-3455.54,0.00022465,2]
[363217087,1748625081136,-757.89,0.00022465,2]
[363217088,1748625081145,-420.0,0.00022465,2]
[363217089,1748625081154,-2483.89,0.00022465,2]
[363217090,1748625081164,-4931.63,0.00022465,2]
[363217091,1748625081174,-1929.8,0.00022465,2]
[363217092,1748625081184,-836.79,0.00022465,2]
[363217093,1748625081194,-420.0,0.00022465,2]
[363217094,1748625081203,-1311.61,0.00022465,2]
[363217095,1748625081212,-1048.99,0.00022465,2]
[363217096,1748625081222,-563.9,0.00022465,2]
[363217097,1748625081230,-2508.76,0.00022465,2]
[363217098,1748625081240,-2451.3,0.00022465,2]
[363217099,1748625081250,-420.0,0.00022465,2]
[363217100,1748625081260,-420.0,0.00022465,2]
[363217101,1748625081270,-624.81,0.00022465,2]
[363217102,1748625081279,-448.68,0.00022465,2]
[363217103,1748625081288,-813.27,0.00022465,2]
[363217104,1748625081297,-3090.09,0.00022465,2]
[363217105,1748625081308,-220.0,0.00022465,2]
[363217106,1748625081318,-849.34,0.00022465,2]
[363217107,1748625081328,-420.0,0.00022465,2]
[363217108,1748625081339,-420.0,0.00022465,2]
[363217109,1748625081349,-1579.54,0.00022465,2]
[363217110,1748625081359,-420.0,0.00022465,2]
[363217111,1748625081368,-420.0,0.00022465,2]
[363217112,1748625081378,-1060.66,0.00022465,2]
[363217113,1748625081387,-420.0,0.00022465,2]
[363217114,1748625081397,-609.36,0.00022465,2]
[363217115,1748625081406,-501.48440447,0.00022465,2]
[363217116,1748625081416,-456.51,0.00022465,2]
[363217117,1748625081426,-9524.77,0.00022465,2]
[363217118,1748625081437,-529.41,0.00022465,2]
[363217119,1748625081447,-420.0,0.00022465,2]
[363217120,1748625081457,-420.0,0.00022465,2]
[363217121,1748625081467,-931.58,0.00022465,2]
[363217122,1748625081477,-863.32,0.00022465,2]
[363217123,1748625081486,-420.0,0.00022465,2]
[363217124,1748625081495,-1157.6,0.00022465,2]
[363217125,1748625081505,-420.0,0.00022465,2]
[363217126,1748625081514,-420.0,0.00022465,2]
[363217127,1748625081524,-420.0,0.00022465,2]
[363217128,1748625081533,-420.0,0.00022465,2]
[363217129,1748625081544,-2462.46,0.00022465,2]
[363217130,1748625081554,-9927.54,0.00022465,2]
[363217131,1748625081563,-420.0,0.00022465,2]
[363217132,1748625081573,-890.58,0.00022465,2]
[363217133,1748625081583,-1376.02,0.00022465,2]
[363217134,1748625081592,-420.0,0.00022465,2]
[363217135,1748625081601,-484.26,0.00022465,2]
[363217136,1748625081610,-457.20286878,0.00022465,2]
[363217137,1748625081620,-530.42,0.00022465,2]
[363217138,1748625081630,-612.89,0.00022465,2]
[363217139,1748625081639,-512.28,0.00022465,2]
[363217140,1748625081649,-7472.97,0.00022465,2]
[363217141,1748625081658,-420.0,0.00022465,2]
[363217142,1748625081668,-1175.39,0.00022465,2]
[363217143,1748625081677,-420.0,0.00022465,2]
[363217144,1748625081687,-4772.19,0.00022465,2]
[363217145,1748625081697,-420.0,0.00022465,2]
[363217146,1748625081707,-1232.42,0.00022465,2]
[363217147,1748625081716,-548.43,0.00022465,2]
[363217148,1748625081725,-1502.08,0.00022465,2]
[363217149,1748625081734,-420.0,0.00022465,2]
[363217150,1748625081743,-785.41,0.00022465,2]
[363217151,1748625081752,-1267.78,0.00022465,2]
[363217152,1748625081762,-3485.21,0.00022465,2]
[363217153,1748625081772,-420.0,0.00022465,2]
[363217154,1748625081781,-869.8,0.00022465,2]
[363217155,1748625081790,-7725.0,0.00022465,2]
[363217156,1748625081800,-614.59,0.00022465,2]
[363217157,1748625081809,-1190.63,0.00022465,2]
[363217158,1748625081819,-1006.83,0.00022465,2]
[363217159,1748625081828,-420.0,0.00022465,2]
[363217160,1748625081837,-542.41,0.00022465,2]
[363217161,1748625081846,-945.24,0.00022465,2]
[363217162,1748625081856,-420.0,0.00022465,2]
[363217163,1748625081867,-420.0,0.00022465,2]
[363217164,1748625081876,-2376.81,0.00022465,2]
[363217165,1748625081886,-5110.77,0.00022465,2]
[363217166,1748625081896,-561.47,0.00022465,2]
[363217167,1748625081905,-1000.0,0.00022465,2]
[363217168,1748625081913,-1445.68,0.00022465,2]
[363217169,1748625081922,-1054.94,0.00022465,2]
[363217170,1748625081932,-420.0,0.00022465,2]
[363217171,1748625081943,-770.34,0.00022465,2]
[363217172,1748625081954,-595.84,0.00022465,2]
[363217173,1748625081964,-1432.67,0.00022465,2]
[363217174,1748625081974,-1785.97,0.00022465,2]
[363217175,1748625081983,-6264.61,0.00022465,2]
[363217176,1748625081996,-420.0,0.00022465,2]
[363217177,1748625082006,-810.81,0.00022465,2]
[363217178,1748625082019,-885.97,0.00022465,2]
[363217179,1748625082030,-463.23,0.00022465,2]
[363217180,1748625082040,-420.0,0.00022465,2]
[363217181,1748625082051,-420.0,0.00022465,2]
[363217182,1748625082060,-420.0,0.00022465,2]
[363217183,1748625082071,-420.0,0.00022465,2]
[363217184,1748625082081,-160.0,0.00022465,2]
[363217185,1748625082091,-420.0,0.00022465,2]
[363217186,1748625082100,-780.99,0.00022465,2]
[363217187,1748625082110,-2202.64,0.00022465,2]
[363217188,1748625082119,-895.07,0.00022465,2]
[363217189,1748625082129,-420.0,0.00022465,2]
[363217190,1748625082138,-520.89,0.00022465,2]
[363217191,1748625082150,-228.86395447,0.00022502,2]
[363217192,1748625082161,-164.9,0.00022527,2]
[363217193,1748625082171,-846.35,0.0002256,2]
[363217194,1748625082181,-3607.08074568,0.00022578,2]
[363217195,1748625082191,-2973.05815968,0.00022578,2]
[363217196,1748625082200,-4211.98860857,0.00022659,7]
[363217197,1748625082210,-1000.0,0.00022696,2]
[363217198,1748625082219,-5955.95598431,0.00022713,2]
[363217199,1748625082263,-1694.712392,0.00022713,2]
[363217200,1748625082286,-2076.8954,0.00022713,2]
[363217201,1748625082674,-756.80622369,0.00022713,2]
[363217202,1748625082683,-1003.39494431,0.00022721,2]
[363217203,1748625082695,-823.33227364,0.00022721,2]
[363217204,1748625082704,-1000.0,0.00022721,2]
[363217205,1748625082713,-1000.0,0.00022721,2]
[363217206,1748625082722,-1000.0,0.00022721,2]
[363217207,1748625082731,-698.72853232,0.00022721,2]
[363217208,1748625082740,-3607.08074568,0.0002273,2]
[363217209,1748625082750,-2973.05815968,0.0002273,2]
[363217210,1748625082759,-1981.71,0.00022738,2]
[363217211,1748625082769,-739.87,0.00022738,2]
[363217212,1748625082778,-2898.99,0.00022738,2]
[363217213,1748625082788,-6988.54,0.00022738,2]
[363217214,1748625082797,-7300.8,0.00022738,2]
[363217215,1748625082807,-1426.72,0.00022738,2]
[363217216,1748625082816,-9133.68,0.00022738,2]
[363217217,1748625082826,-22781.92,0.00022738,2]
[363217218,1748625083072,-7025.96,0.00022738,2]
[363217219,1748625083083,-1139.88,0.00022738,2]
[363217220,1748625083093,-174.131449,0.00022739,7]
[363217221,1748625083102,-151.0,0.00022739,7]
[363217222,1748625083112,-420.0,0.00022739,2]
[363217223,1748625083121,-420.0,0.00022739,2]
[363217224,1748625083131,-420.0,0.00022739,2]
[363217225,1748625083140,-420.0,0.00022739,2]
[363217226,1748625083150,-543.68,0.00022739,2]
[363217227,1748625083160,-420.0,0.00022739,2]
[363217228,1748625083169,-455.58,0.00022739,2]
[363217229,1748625083179,-420.0,0.00022739,2]
[363217230,1748625083188,-618.89,0.00022739,2]
[363217231,1748625083197,-420.0,0.00022739,2]
[363217232,1748625083207,-420.0,0.00022739,2]
[363217233,1748625083216,-420.0,0.00022739,2]